[Event "*** Titled Tuesday Blitz"]
[Site "Chess.com"]
[Date "2020.05.05"]
[Round "1"]
[White "El_ultimo_Pablo"]
[Black "PSvidler"]
[Result "1/2-1/2"]
[WhiteElo "2477"]
[BlackElo "3050"]
[TimeControl "180+1"]
[EndTime "10:06:57 PDT"]
[Termination "Game drawn by repetition"]

1. d4 {[%clk 0:03:00.9]} 1... Nf6 {[%clk 0:02:59]} 2. c4 {[%clk 0:03:00.7]} 2...
g6 {[%clk 0:02:58.9]} 3. Nc3 {[%clk 0:03:00.4]} 3... d5 {[%clk 0:02:58.3]} 4.
Nf3 {[%clk 0:02:38.5]} 4... Bg7 {[%clk 0:02:57.3]} 5. Bf4 {[%clk 0:02:38.5]}
5... c5 {[%clk 0:02:50]} 6. e3 {[%clk 0:02:35.3]} 6... cxd4 {[%clk 0:02:49.6]}
7. Nxd4 {[%clk 0:02:29.9]} 7... O-O {[%clk 0:02:46.4]} 8. Be2 {[%clk 0:02:28.7]}
8... Nc6 {[%clk 0:02:36]} 9. cxd5 {[%clk 0:02:27]} 9... Nxd5 {[%clk 0:02:24.8]}
10. Nxc6 {[%clk 0:02:08.4]} 10... bxc6 {[%clk 0:02:22.2]} 11. Nxd5 {[%clk
0:01:51.7]} 11... cxd5 {[%clk 0:02:21.6]} 12. Qd2 {[%clk 0:01:39]} 12... e5
{[%clk 0:02:19.1]} 13. Bg3 {[%clk 0:01:37.7]} 13... Be6 {[%clk 0:02:19.7]} 14.
O-O {[%clk 0:01:36.9]} 14... Qb6 {[%clk 0:02:18.4]} 15. b3 {[%clk 0:01:25.9]}
15... Rac8 {[%clk 0:02:14.9]} 16. Rac1 {[%clk 0:01:25.9]} 16... h5 {[%clk
0:02:09.2]} 17. h3 {[%clk 0:01:25.5]} 17... a5 {[%clk 0:02:08.9]} 18. Rxc8
{[%clk 0:01:24.1]} 18... Rxc8 {[%clk 0:02:08.3]} 19. Rc1 {[%clk 0:01:24.6]}
19... Rxc1+ {[%clk 0:02:04.8]} 20. Qxc1 {[%clk 0:01:25.5]} 20... Bf6 {[%clk
0:02:00.8]} 21. Bd3 {[%clk 0:01:06.3]} 21... h4 {[%clk 0:02:00.1]} 22. Bh2
{[%clk 0:01:06]} 22... Kg7 {[%clk 0:01:47]} 23. Kh1 {[%clk 0:01:01.5]} 23... d4
{[%clk 0:01:45]} 24. exd4 {[%clk 0:00:58.1]} 24... Qxd4 {[%clk 0:01:43.1]} 25.
Qc2 {[%clk 0:00:40.3]} 25... Bg5 {[%clk 0:01:37.6]} 26. Bg1 {[%clk 0:00:38.6]}
26... Bf4 {[%clk 0:01:35.5]} 27. f3 {[%clk 0:00:35.1]} 27... Be3 {[%clk
0:01:32.6]} 28. Bxe3 {[%clk 0:00:28.2]} 28... Qxe3 {[%clk 0:01:33]} 29. Qe2
{[%clk 0:00:24.9]} 29... Qxe2 {[%clk 0:01:27.7]} 30. Bxe2 {[%clk 0:00:25.8]}
30... Kh6 {[%clk 0:01:27.9]} 31. Kg1 {[%clk 0:00:25.7]} 31... Kg5 {[%clk
0:01:28]} 32. Kf2 {[%clk 0:00:25.8]} 32... Kf4 {[%clk 0:01:28.4]} 33. Bc4 {[%clk
0:00:21.7]} 33... Bxc4 {[%clk 0:01:18.5]} 34. bxc4 {[%clk 0:00:22.6]} 34... e4
{[%clk 0:01:19.4]} 35. c5 {[%clk 0:00:18.7]} 35... e3+ {[%clk 0:01:19.7]} 36.
Ke2 {[%clk 0:00:18.6]} 36... Ke5 {[%clk 0:01:20.4]} 37. Kxe3 {[%clk 0:00:18.7]}
37... Kd5 {[%clk 0:01:21]} 38. Kf4 {[%clk 0:00:19]} 38... Kxc5 {[%clk
0:01:21.2]} 39. Ke5 {[%clk 0:00:19.5]} 39... Kb4 {[%clk 0:01:21.4]} 40. Kf6
{[%clk 0:00:19.6]} 40... Ka3 {[%clk 0:01:21.8]} 41. Kxf7 {[%clk 0:00:20.1]}
41... Kxa2 {[%clk 0:01:22.4]} 42. Kxg6 {[%clk 0:00:21]} 42... Kb2 {[%clk
0:01:22.8]} 43. f4 {[%clk 0:00:21.9]} 43... a4 {[%clk 0:01:22.6]} 44. f5 {[%clk
0:00:22.8]} 44... a3 {[%clk 0:01:23.1]} 45. f6 {[%clk 0:00:23.7]} 45... a2
{[%clk 0:01:23.7]} 46. f7 {[%clk 0:00:24.6]} 46... a1=Q {[%clk 0:01:23.3]} 47.
f8=Q {[%clk 0:00:25.5]} 47... Qb1+ {[%clk 0:01:22.3]} 48. Qf5 {[%clk 0:00:25.9]}
48... Qe1 {[%clk 0:01:21.7]} 49. Qf6+ {[%clk 0:00:24.7]} 49... Kc2 {[%clk
0:01:21.7]} 50. Kh5 {[%clk 0:00:24.7]} 50... Qe2+ {[%clk 0:01:19.8]} 51. Qf3
{[%clk 0:00:24.4]} 51... Qe7 {[%clk 0:01:17.4]} 52. Qf5+ {[%clk 0:00:22.5]}
52... Kd1 {[%clk 0:01:15.1]} 53. Qg4+ {[%clk 0:00:21.6]} 53... Kc2 {[%clk
0:01:15.1]} 54. Qxh4 {[%clk 0:00:20.9]} 54... Qh7+ {[%clk 0:01:14.6]} 55. Kg4
{[%clk 0:00:20.8]} 55... Qe4+ {[%clk 0:01:14.4]} 56. Kg5 {[%clk 0:00:21.2]}
56... Qe7+ {[%clk 0:01:14.5]} 57. Kh5 {[%clk 0:00:20.6]} 57... Qh7+ {[%clk
0:01:14.6]} 58. Kg4 {[%clk 0:00:21]} 58... Qe4+ {[%clk 0:01:14.6]} 59. Kg3
{[%clk 0:00:21.1]} 59... Qe1+ {[%clk 0:01:14.7]} 60. Kg4 {[%clk 0:00:21.5]}
60... Qe4+ {[%clk 0:01:15.3]} 1/2-1/2

[Event "*** Titled Tuesday Blitz"]
[Site "Chess.com"]
[Date "2020.05.05"]
[Round "1"]
[White "tteshan"]
[Black "TengisChess"]
[Result "1-0"]
[WhiteElo "2219"]
[BlackElo "2536"]
[TimeControl "180+1"]
[EndTime "10:06:57 PDT"]
[Termination "tteshan won by checkmate"]

1. d4 {[%clk 0:02:49.6]} 1... Nf6 {[%clk 0:02:59.8]} 2. c4 {[%clk 0:02:47.9]}
2... g6 {[%clk 0:02:58.9]} 3. Nc3 {[%clk 0:02:45.8]} 3... Bg7 {[%clk 0:02:59.4]}
4. e4 {[%clk 0:02:44.7]} 4... O-O {[%clk 0:03:00.3]} 5. f3 {[%clk 0:02:44.3]}
5... c6 {[%clk 0:02:59.5]} 6. Be3 {[%clk 0:02:41.5]} 6... d5 {[%clk 0:02:59.7]}
7. cxd5 {[%clk 0:02:39.3]} 7... cxd5 {[%clk 0:03:00.6]} 8. e5 {[%clk 0:02:37.6]}
8... Nfd7 {[%clk 0:03:01]} 9. Qd2 {[%clk 0:02:32.5]} 9... Nc6 {[%clk 0:03:01.1]}
10. Bb5 {[%clk 0:02:23.3]} 10... Nb6 {[%clk 0:02:57.2]} 11. Nge2 {[%clk
0:02:19.4]} 11... a6 {[%clk 0:02:56.9]} 12. Bd3 {[%clk 0:01:57.9]} 12... Nb4
{[%clk 0:02:56.8]} 13. b3 {[%clk 0:01:44.6]} 13... Nxd3+ {[%clk 0:02:56.1]} 14.
Qxd3 {[%clk 0:01:43.2]} 14... Bf5 {[%clk 0:02:57]} 15. Qd2 {[%clk 0:01:41.9]}
15... Rc8 {[%clk 0:02:57.5]} 16. O-O {[%clk 0:01:34.3]} 16... Na8 {[%clk
0:02:52.2]} 17. a4 {[%clk 0:01:29.3]} 17... Nc7 {[%clk 0:02:31.4]} 18. Rac1
{[%clk 0:01:26.9]} 18... a5 {[%clk 0:02:29.6]} 19. Bh6 {[%clk 0:01:12.8]} 19...
Na6 {[%clk 0:02:26.8]} 20. Bxg7 {[%clk 0:01:10.8]} 20... Kxg7 {[%clk 0:02:27.7]}
21. Qg5 {[%clk 0:01:00.7]} 21... Nb4 {[%clk 0:02:18.9]} 22. Nf4 {[%clk
0:00:58.2]} 22... e6 {[%clk 0:02:16.4]} 23. Nh5+ {[%clk 0:00:52.3]} 23... Kh8
{[%clk 0:02:16.6]} 24. Nf6 {[%clk 0:00:51.1]} 24... Rg8 {[%clk 0:02:16.2]} 25.
Qh6 {[%clk 0:00:41.6]} 25... Rg7 {[%clk 0:02:15.9]} 26. Nb5 {[%clk 0:00:35.3]}
26... Bc2 {[%clk 0:02:09.2]} 27. Nd6 {[%clk 0:00:31.5]} 27... Rc7 {[%clk
0:02:08.8]} 28. Nde8 {[%clk 0:00:28.5]} 28... Qxf6 {[%clk 0:01:29.6]} 29. exf6
{[%clk 0:00:25.8]} 29... Rg8 {[%clk 0:01:18]} 30. Nxc7 {[%clk 0:00:23]} 30... g5
{[%clk 0:01:15.4]} 31. Rf2 {[%clk 0:00:19.7]} 31... Bg6 {[%clk 0:01:14]} 32. Nb5
{[%clk 0:00:15.3]} 32... Nc6 {[%clk 0:01:13.5]} 33. Nd6 {[%clk 0:00:12.9]} 33...
g4 {[%clk 0:01:13.5]} 34. fxg4 {[%clk 0:00:12.6]} 34... e5 {[%clk 0:01:05.8]}
35. Nxb7 {[%clk 0:00:12.9]} 35... Nxd4 {[%clk 0:01:05.4]} 36. Rc7 {[%clk
0:00:12.5]} 36... Ne6 {[%clk 0:01:01.4]} 37. Re7 {[%clk 0:00:12]} 37... Nf4
{[%clk 0:00:57.6]} 38. Nd6 {[%clk 0:00:12.4]} 38... Ne6 {[%clk 0:00:46.2]} 39.
Nxf7+ {[%clk 0:00:12.3]} 39... Bxf7 {[%clk 0:00:46.5]} 40. Rxf7 {[%clk
0:00:12.7]} 40... Ng5 {[%clk 0:00:47.1]} 41. Re7 {[%clk 0:00:12]} 41... e4
{[%clk 0:00:45.2]} 42. h4 {[%clk 0:00:12]} 42... e3 {[%clk 0:00:45.1]} 43. hxg5
{[%clk 0:00:11.8]} 43... exf2+ {[%clk 0:00:45.9]} 44. Kxf2 {[%clk 0:00:12.3]}
44... Rg7 {[%clk 0:00:44.8]} 45. Qxg7# {[%clk 0:00:12]} 1-0

[Event "*** Titled Tuesday Blitz"]
[Site "Chess.com"]
[Date "2020.05.05"]
[Round "1"]
[White "HouseOfDurin"]
[Black "Nbk90"]
[Result "0-1"]
[WhiteElo "2004"]
[BlackElo "2481"]
[TimeControl "180+1"]
[EndTime "10:06:57 PDT"]
[Termination "Nbk90 won on time"]

1. d4 {[%clk 0:03:00.9]} 1... Nf6 {[%clk 0:02:59.3]} 2. Bg5 {[%clk 0:03:01.4]}
2... Ne4 {[%clk 0:02:58.3]} 3. h4 {[%clk 0:03:00.8]} 3... c5 {[%clk 0:02:56.7]}
4. dxc5 {[%clk 0:03:00.2]} 4... Qa5+ {[%clk 0:02:47.2]} 5. Nd2 {[%clk
0:03:00.5]} 5... Nxg5 {[%clk 0:02:35.9]} 6. hxg5 {[%clk 0:03:00.3]} 6... Qxc5
{[%clk 0:02:33.6]} 7. Ngf3 {[%clk 0:03:00.8]} 7... d6 {[%clk 0:02:29.8]} 8. e4
{[%clk 0:02:57]} 8... Bg4 {[%clk 0:02:27]} 9. c3 {[%clk 0:02:50.2]} 9... Nc6
{[%clk 0:02:25.5]} 10. Qa4 {[%clk 0:02:04.6]} 10... g6 {[%clk 0:01:58.1]} 11.
Rh4 {[%clk 0:01:52.2]} 11... Bd7 {[%clk 0:01:55.3]} 12. Qb3 {[%clk 0:01:45.8]}
12... Bg7 {[%clk 0:01:53.4]} 13. O-O-O {[%clk 0:01:28.1]} 13... h6 {[%clk
0:01:45.9]} 14. gxh6 {[%clk 0:01:20.7]} 14... Rxh6 {[%clk 0:01:35.3]} 15. Rxh6
{[%clk 0:01:18.5]} 15... Bxh6 {[%clk 0:01:36.2]} 16. Qxb7 {[%clk 0:00:59.7]}
16... Rb8 {[%clk 0:01:33.9]} 17. Qa6 {[%clk 0:00:59]} 17... Qxf2 {[%clk
0:01:27.7]} 18. g4 {[%clk 0:00:41.7]} 18... Bf4 {[%clk 0:01:20.9]} 19. Kb1
{[%clk 0:00:36.8]} 19... Qb6 {[%clk 0:01:17.2]} 20. Qxb6 {[%clk 0:00:35.9]}
20... Rxb6 {[%clk 0:01:17.9]} 21. Nc4 {[%clk 0:00:32.9]} 21... Rb8 {[%clk
0:01:17.2]} 22. g5 {[%clk 0:00:28.4]} 22... Kf8 {[%clk 0:01:09.2]} 23. Be2
{[%clk 0:00:27.8]} 23... Kg7 {[%clk 0:01:08.7]} 24. e5 {[%clk 0:00:25]} 24...
Bf5+ {[%clk 0:01:06]} 25. Bd3 {[%clk 0:00:20.2]} 25... Nxe5 {[%clk 0:00:56.7]}
26. Ncxe5 {[%clk 0:00:18.4]} 26... dxe5 {[%clk 0:00:56.8]} 27. Bxf5 {[%clk
0:00:15.5]} 27... gxf5 {[%clk 0:00:57.7]} 28. Rd7 {[%clk 0:00:15.3]} 28... e6
{[%clk 0:00:53]} 29. Nh4 {[%clk 0:00:13.6]} 29... Bxg5 {[%clk 0:00:50.8]} 30.
Nf3 {[%clk 0:00:11.9]} 30... Bf4 {[%clk 0:00:50]} 31. Rxa7 {[%clk 0:00:11.2]}
31... e4 {[%clk 0:00:49.2]} 32. Nd4 {[%clk 0:00:11.2]} 32... Kg6 {[%clk
0:00:49.4]} 33. Kc2 {[%clk 0:00:11.1]} 33... Be5 {[%clk 0:00:47.4]} 34. Nc6
{[%clk 0:00:10.4]} 34... Rb5 {[%clk 0:00:45]} 35. a4 {[%clk 0:00:04.6]} 35...
Rc5 {[%clk 0:00:43.6]} 0-1

[Event "*** Titled Tuesday Blitz"]
[Site "Chess.com"]
[Date "2020.05.05"]
[Round "1"]
[White "lachesisQ"]
[Black "dbrankovic68"]
[Result "1-0"]
[WhiteElo "3083"]
[BlackElo "2471"]
[TimeControl "180+1"]
[EndTime "10:06:58 PDT"]
[Termination "lachesisQ won by resignation"]

1. c4 {[%clk 0:03:00.2]} 1... Nf6 {[%clk 0:02:59.4]} 2. Nc3 {[%clk 0:02:59.9]}
2... g6 {[%clk 0:02:59.5]} 3. e4 {[%clk 0:02:59.7]} 3... d6 {[%clk 0:03:00]} 4.
d4 {[%clk 0:02:59.6]} 4... Bg7 {[%clk 0:03:00.4]} 5. Nf3 {[%clk 0:03:00.5]} 5...
O-O {[%clk 0:03:00.5]} 6. h3 {[%clk 0:03:01.4]} 6... e5 {[%clk 0:02:59.9]} 7. d5
{[%clk 0:03:00.1]} 7... Nh5 {[%clk 0:02:59.7]} 8. g3 {[%clk 0:02:59.8]} 8... Qe8
{[%clk 0:02:59.8]} 9. Nh2 {[%clk 0:02:56.5]} 9... f5 {[%clk 0:02:56.4]} 10. exf5
{[%clk 0:02:52.3]} 10... gxf5 {[%clk 0:02:56.3]} 11. Be2 {[%clk 0:02:52.8]}
11... Nf6 {[%clk 0:02:52.6]} 12. Bg5 {[%clk 0:02:47]} 12... a5 {[%clk
0:02:46.6]} 13. Qc2 {[%clk 0:02:45.9]} 13... Na6 {[%clk 0:02:46.1]} 14. O-O-O
{[%clk 0:02:43.7]} 14... Nc5 {[%clk 0:02:46]} 15. g4 {[%clk 0:02:35.1]} 15...
Nfe4 {[%clk 0:02:40.9]} 16. Nxe4 {[%clk 0:02:33.3]} 16... Nxe4 {[%clk
0:02:40.3]} 17. Be3 {[%clk 0:02:33.1]} 17... Nc5 {[%clk 0:02:10.4]} 18. Rhg1
{[%clk 0:02:21.4]} 18... f4 {[%clk 0:02:08.5]} 19. Bxc5 {[%clk 0:02:21.3]} 19...
dxc5 {[%clk 0:02:09.3]} 20. Bd3 {[%clk 0:02:21.9]} 20... e4 {[%clk 0:02:07.1]}
21. Bxe4 {[%clk 0:02:22]} 21... h6 {[%clk 0:02:06.1]} 22. Nf3 {[%clk 0:02:20.8]}
22... Qf7 {[%clk 0:02:01]} 23. Bh7+ {[%clk 0:02:14.3]} 23... Kh8 {[%clk
0:02:00.4]} 24. Bg6 {[%clk 0:02:11.5]} 24... Qf6 {[%clk 0:02:00.3]} 25. g5
{[%clk 0:02:11.7]} 25... hxg5 {[%clk 0:01:35.2]} 26. Rxg5 {[%clk 0:02:12.6]}
26... a4 {[%clk 0:01:29.5]} 27. a3 {[%clk 0:02:10.8]} 27... Ra6 {[%clk
0:01:28.7]} 28. Rh5+ {[%clk 0:01:58.3]} 28... Kg8 {[%clk 0:01:28.1]} 29. Bh7+
{[%clk 0:01:59.2]} 29... Kf7 {[%clk 0:01:28.1]} 30. Re1 {[%clk 0:01:47.7]} 30...
Rd8 {[%clk 0:01:17.7]} 31. Bf5 {[%clk 0:01:08]} 31... Rb6 {[%clk 0:01:10]} 32.
Ng5+ {[%clk 0:00:57.2]} 32... Kg8 {[%clk 0:01:01]} 33. Be6+ {[%clk 0:00:56.1]}
33... Bxe6 {[%clk 0:00:52.9]} 34. Qh7+ {[%clk 0:00:37.9]} 34... Kf8 {[%clk
0:00:52.6]} 35. Nxe6+ {[%clk 0:00:38.8]} 35... Rxe6 {[%clk 0:00:48.8]} 36. Rxe6
{[%clk 0:00:39]} 36... Qxb2+ {[%clk 0:00:47.8]} 37. Kd1 {[%clk 0:00:38.8]} 37...
Rd7 {[%clk 0:00:20]} 38. Rf5+ {[%clk 0:00:37.6]} 38... Rf7 {[%clk 0:00:19.7]}
39. Rxf7+ {[%clk 0:00:37]} 39... Kxf7 {[%clk 0:00:19.8]} 40. Qh5+ {[%clk
0:00:36.1]} 40... Kg8 {[%clk 0:00:15.9]} 41. Re8+ {[%clk 0:00:36]} 1-0

[Event "*** Titled Tuesday Blitz"]
[Site "Chess.com"]
[Date "2020.05.05"]
[Round "1"]
[White "TheFireChess"]
[Black "Indianlad"]
[Result "0-1"]
[WhiteElo "2455"]
[BlackElo "2912"]
[TimeControl "180+1"]
[EndTime "10:06:58 PDT"]
[Termination "Indianlad won by checkmate"]

1. e4 {[%clk 0:02:54.9]} 1... c5 {[%clk 0:02:59.2]} 2. c3 {[%clk 0:02:52.9]}
2... Nf6 {[%clk 0:02:58.5]} 3. e5 {[%clk 0:02:52.8]} 3... Nd5 {[%clk 0:02:59]}
4. Nf3 {[%clk 0:02:53.3]} 4... d6 {[%clk 0:02:58.6]} 5. Bc4 {[%clk 0:02:51.4]}
5... Nb6 {[%clk 0:02:58.9]} 6. Bb3 {[%clk 0:02:50.1]} 6... c4 {[%clk 0:02:55.4]}
7. Bc2 {[%clk 0:02:49.7]} 7... Nc6 {[%clk 0:02:52.2]} 8. exd6 {[%clk 0:02:48.3]}
8... e5 {[%clk 0:02:51.8]} 9. O-O {[%clk 0:02:45.9]} 9... Bxd6 {[%clk 0:02:49]}
10. Re1 {[%clk 0:02:43.8]} 10... O-O {[%clk 0:02:44.4]} 11. b3 {[%clk
0:02:42.5]} 11... f5 {[%clk 0:02:40.7]} 12. bxc4 {[%clk 0:02:37.1]} 12... e4
{[%clk 0:02:41.1]} 13. Nd4 {[%clk 0:02:31.4]} 13... Ne5 {[%clk 0:02:13.5]} 14.
Ba3 {[%clk 0:02:15.2]} 14... Ng4 {[%clk 0:02:03.1]} 15. g3 {[%clk 0:01:41.4]}
15... Bxa3 {[%clk 0:01:56.1]} 16. Nxa3 {[%clk 0:01:42.3]} 16... Qd6 {[%clk
0:01:56.8]} 17. Nab5 {[%clk 0:01:29.4]} 17... Qh6 {[%clk 0:01:57.1]} 18. h4
{[%clk 0:01:28.7]} 18... g5 {[%clk 0:01:25.4]} 19. f3 {[%clk 0:01:26.8]} 19...
Nf6 {[%clk 0:01:25.5]} 20. fxe4 {[%clk 0:01:18.1]} 20... fxe4 {[%clk 0:01:26]}
21. Qe2 {[%clk 0:01:09.3]} 21... gxh4 {[%clk 0:01:23.2]} 22. gxh4 {[%clk
0:00:56.7]} 22... Kh8 {[%clk 0:01:20.1]} 23. Bxe4 {[%clk 0:00:47.5]} 23... Rg8+
{[%clk 0:01:20.4]} 24. Kh1 {[%clk 0:00:44.7]} 24... Bg4 {[%clk 0:00:44.7]} 25.
Qh2 {[%clk 0:00:38.7]} 25... Rad8 {[%clk 0:00:41]} 26. Bg2 {[%clk 0:00:32.3]}
26... Nxc4 {[%clk 0:00:37.8]} 27. Re7 {[%clk 0:00:28.1]} 27... Bd7 {[%clk
0:00:30.9]} 28. Rf1 {[%clk 0:00:20.3]} 28... Ng4 {[%clk 0:00:30.8]} 29. Qg3
{[%clk 0:00:18]} 29... Nge3 {[%clk 0:00:29.1]} 30. Qxg8+ {[%clk 0:00:13.1]}
30... Rxg8 {[%clk 0:00:26.2]} 31. dxe3 {[%clk 0:00:14]} 31... Nxe3 {[%clk
0:00:24.9]} 32. Rff7 {[%clk 0:00:12.9]} 32... Qxh4+ {[%clk 0:00:24.6]} 33. Kg1
{[%clk 0:00:12.8]} 33... Rxg2# {[%clk 0:00:25]} 0-1

[Event "*** Titled Tuesday Blitz"]
[Site "Chess.com"]
[Date "2020.05.05"]
[Round "1"]
[White "mirochka"]
[Black "Riptide27"]
[Result "0-1"]
[WhiteElo "2190"]
[BlackElo "2537"]
[TimeControl "180+1"]
[EndTime "10:06:58 PDT"]
[Termination "Riptide27 won on time"]

1. e4 {[%clk 0:03:00.9]} 1... c5 {[%clk 0:02:58]} 2. b4 {[%clk 0:03:00]} 2...
cxb4 {[%clk 0:02:57.5]} 3. a3 {[%clk 0:02:59]} 3... bxa3 {[%clk 0:02:56.9]} 4.
d4 {[%clk 0:02:56.8]} 4... e6 {[%clk 0:02:54.9]} 5. Bd3 {[%clk 0:02:54.5]} 5...
Nc6 {[%clk 0:02:52.5]} 6. c3 {[%clk 0:02:53.8]} 6... d5 {[%clk 0:02:51]} 7. e5
{[%clk 0:02:53]} 7... Na5 {[%clk 0:02:40.5]} 8. Ne2 {[%clk 0:02:42.5]} 8... Bd7
{[%clk 0:02:36.3]} 9. O-O {[%clk 0:02:39.3]} 9... Qc7 {[%clk 0:02:25.6]} 10. f4
{[%clk 0:02:32.2]} 10... g6 {[%clk 0:02:24.4]} 11. Nxa3 {[%clk 0:02:22.9]} 11...
a6 {[%clk 0:02:21.8]} 12. g4 {[%clk 0:01:36.3]} 12... Ne7 {[%clk 0:02:04.9]} 13.
Bd2 {[%clk 0:01:24.7]} 13... Nc4 {[%clk 0:01:40.6]} 14. Ng3 {[%clk 0:01:05.7]}
14... Nb2 {[%clk 0:01:36.3]} 15. Qe2 {[%clk 0:01:02.4]} 15... Nxd3 {[%clk
0:01:35.7]} 16. Qxd3 {[%clk 0:01:03.3]} 16... Nc8 {[%clk 0:01:28.3]} 17. Qf3
{[%clk 0:00:52.4]} 17... Nb6 {[%clk 0:01:23.8]} 18. f5 {[%clk 0:00:47.4]} 18...
O-O-O {[%clk 0:01:18.2]} 19. f6 {[%clk 0:00:38.1]} 19... Kb8 {[%clk 0:01:14.1]}
20. Rfb1 {[%clk 0:00:36.7]} 20... Rc8 {[%clk 0:01:11.9]} 21. Qd3 {[%clk
0:00:35.5]} 21... Bxa3 {[%clk 0:00:48.3]} 22. Rxa3 {[%clk 0:00:35.4]} 22... Bb5
{[%clk 0:00:45.5]} 23. Rxb5 {[%clk 0:00:24.2]} 23... axb5 {[%clk 0:00:38.5]} 24.
Qxb5 {[%clk 0:00:25.1]} 24... Nc4 {[%clk 0:00:32]} 25. Ra2 {[%clk 0:00:18.9]}
25... Qb6 {[%clk 0:00:26.5]} 26. Qa4 {[%clk 0:00:16.2]} 26... Kc7 {[%clk
0:00:26.3]} 27. Ne2 {[%clk 0:00:13.5]} 27... Ra8 {[%clk 0:00:25]} 28. Qb3 {[%clk
0:00:12.3]} 28... Qxb3 {[%clk 0:00:22.6]} 0-1

[Event "*** Titled Tuesday Blitz"]
[Site "Chess.com"]
[Date "2020.05.05"]
[Round "1"]
[White "mitrabhaa"]
[Black "Blitzking642"]
[Result "1-0"]
[WhiteElo "2619"]
[BlackElo "2298"]
[TimeControl "180+1"]
[EndTime "10:06:59 PDT"]
[Termination "mitrabhaa won by resignation"]

1. Nf3 {[%clk 0:03:00.9]} 1... c5 {[%clk 0:02:59.1]} 2. g3 {[%clk 0:03:01.2]}
2... Nc6 {[%clk 0:02:58.8]} 3. Bg2 {[%clk 0:03:01.8]} 3... g6 {[%clk 0:02:59]}
4. O-O {[%clk 0:02:59.6]} 4... Bg7 {[%clk 0:02:59.2]} 5. c4 {[%clk 0:03:00.2]}
5... Nf6 {[%clk 0:02:53.2]} 6. d4 {[%clk 0:03:00]} 6... cxd4 {[%clk 0:02:52.2]}
7. Nxd4 {[%clk 0:03:00.9]} 7... O-O {[%clk 0:02:52.4]} 8. Nc3 {[%clk 0:03:00.7]}
8... Ng4 {[%clk 0:02:51.2]} 9. e3 {[%clk 0:02:56.8]} 9... d6 {[%clk 0:02:50]}
10. Nxc6 {[%clk 0:02:55.3]} 10... bxc6 {[%clk 0:02:49.1]} 11. Bxc6 {[%clk
0:02:55.9]} 11... Rb8 {[%clk 0:02:48.7]} 12. Bg2 {[%clk 0:02:56.2]} 12... Ne5
{[%clk 0:02:41.3]} 13. Qe2 {[%clk 0:02:55.7]} 13... Ba6 {[%clk 0:02:40.3]} 14.
Rd1 {[%clk 0:02:46.8]} 14... Bxc4 {[%clk 0:02:28.8]} 15. Qc2 {[%clk 0:02:46.4]}
15... Qa5 {[%clk 0:02:02.6]} 16. Bd2 {[%clk 0:02:35.9]} 16... Bd3 {[%clk
0:01:55.6]} 17. Qc1 {[%clk 0:02:31.4]} 17... Rfc8 {[%clk 0:01:49.3]} 18. Nd5
{[%clk 0:02:26.9]} 18... Qd8 {[%clk 0:01:13.8]} 19. Bc3 {[%clk 0:02:24.9]} 19...
Bc4 {[%clk 0:00:57.2]} 20. Qd2 {[%clk 0:02:07.5]} 20... Ba6 {[%clk 0:00:44.9]}
21. b3 {[%clk 0:01:55.8]} 21... e6 {[%clk 0:00:40.7]} 22. Ba5 {[%clk 0:01:53.5]}
22... Qd7 {[%clk 0:00:31.3]} 23. Nf4 {[%clk 0:01:50.4]} 23... d5 {[%clk
0:00:30.1]} 24. Rac1 {[%clk 0:01:47.5]} 24... Rxc1 {[%clk 0:00:26.1]} 25. Rxc1
{[%clk 0:01:48.4]} 25... Rc8 {[%clk 0:00:26.3]} 26. h4 {[%clk 0:01:42.7]} 26...
h6 {[%clk 0:00:20.7]} 27. Rxc8+ {[%clk 0:01:40]} 27... Qxc8 {[%clk 0:00:19.7]}
28. Bc3 {[%clk 0:01:34]} 28... Qxc3 {[%clk 0:00:18.9]} 29. Qxc3 {[%clk
0:01:33.6]} 29... Nf3+ {[%clk 0:00:19.2]} 30. Bxf3 {[%clk 0:01:34]} 30... Bxc3
{[%clk 0:00:20.1]} 31. Be2 {[%clk 0:01:34.6]} 31... Bxe2 {[%clk 0:00:18.6]} 32.
Nxe2 {[%clk 0:01:35.5]} 32... Bf6 {[%clk 0:00:18.3]} 33. Nf4 {[%clk 0:01:34.2]}
33... Kf8 {[%clk 0:00:18.1]} 34. h5 {[%clk 0:01:34.5]} 34... g5 {[%clk 0:00:17]}
35. Nd3 {[%clk 0:01:35]} 35... Ke7 {[%clk 0:00:16.8]} 36. g4 {[%clk 0:01:35.3]}
36... Kd6 {[%clk 0:00:16.5]} 37. f3 {[%clk 0:01:35.5]} 37... e5 {[%clk
0:00:16.3]} 38. e4 {[%clk 0:01:35.8]} 38... Bd8 {[%clk 0:00:14.5]} 39. Kf1
{[%clk 0:01:35.5]} 39... Bb6 {[%clk 0:00:14.4]} 40. Ke2 {[%clk 0:01:35.4]} 40...
dxe4 {[%clk 0:00:14.1]} 41. fxe4 {[%clk 0:01:34.7]} 41... Bd4 {[%clk 0:00:14.1]}
42. a4 {[%clk 0:01:34.2]} 42... a5 {[%clk 0:00:13.6]} 43. Kd2 {[%clk 0:01:32.3]}
43... Kc6 {[%clk 0:00:13.9]} 44. Kc2 {[%clk 0:01:32.3]} 44... Kb6 {[%clk
0:00:13.9]} 45. b4 {[%clk 0:01:32.2]} 45... axb4 {[%clk 0:00:13.6]} 46. Nxb4
{[%clk 0:01:33.1]} 46... Bc5 {[%clk 0:00:10.9]} 47. Nd5+ {[%clk 0:01:32.9]}
47... Ka5 {[%clk 0:00:11.2]} 48. Kb3 {[%clk 0:01:33.7]} 48... Bf8 {[%clk
0:00:11]} 49. Ne3 {[%clk 0:01:32.6]} 49... Bg7 {[%clk 0:00:10.6]} 50. Nc4+
{[%clk 0:01:33.3]} 50... Ka6 {[%clk 0:00:09.1]} 51. a5 {[%clk 0:01:32.7]} 51...
Kb5 {[%clk 0:00:08.1]} 52. Kc3 {[%clk 0:01:33]} 52... f6 {[%clk 0:00:06.6]} 53.
Nd6+ {[%clk 0:01:30]} 53... Kxa5 {[%clk 0:00:04.8]} 54. Ne8 {[%clk 0:01:30.6]}
54... Bf8 {[%clk 0:00:04.1]} 55. Kc4 {[%clk 0:01:30.4]} 55... Kb6 {[%clk
0:00:04.1]} 56. Kd5 {[%clk 0:01:30.3]} 56... Kb7 {[%clk 0:00:03.8]} 57. Nxf6
{[%clk 0:01:30.4]} 57... Kc7 {[%clk 0:00:03.5]} 58. Kxe5 {[%clk 0:01:29.7]}
58... Kd8 {[%clk 0:00:03.2]} 59. Kf5 {[%clk 0:01:29.9]} 59... Ke7 {[%clk
0:00:03.2]} 60. e5 {[%clk 0:01:29.6]} 1-0